fUST/lending_fUST_20250329
["ID","MTS","AMOUNT","RATE_DAILY","PERIOD"]
[356806485,1743235465151,151.0,0.00048634,30]
[356806486,1743235503129,1493.68585158,0.00048634,120]
[356806487,1743235503166,3161.1269344,0.00048634,60]
[356806488,1743235503205,1999.05563944,0.00048634,120]
[356806489,1743235508757,600.0,0.00048634,30]
[356806490,1743235509453,622.2,0.00048634,30]
[356806491,1743235510252,645.2214,0.00048634,30]
[356806492,1743235511261,669.0945918,0.00048634,30]
[356806493,1743235511641,693.8510917,0.00048634,30]
[356806494,1743235512251,719.52358209,0.00048634,30]
[356806495,1743235512875,746.14595463,0.00048634,30]
[356806496,1743235513530,773.75335495,0.00048634,30]
[356806497,1743235514210,802.38222908,0.00048634,30]
[356806498,1743235514884,832.07037156,0.00048634,30]
[356806499,1743235515779,862.8569753,0.00048634,30]
[356806500,1743235516579,894.78268339,0.00048634,30]
[356806501,1743235517226,927.88964268,0.00048634,30]
[356806502,1743235517892,962.22155946,0.00048634,30]
[356806503,1743235518707,997.82375716,0.00048634,30]
[356806504,1743235519374,1034.74323617,0.00048634,30]
[356806505,1743235520118,1073.02873591,0.00048634,30]
[356806506,1743235520843,1112.73079914,0.00048634,30]
[356806507,1743235521481,1153.9018387,0.00048634,30]
[356806508,1743235522155,1153.9018387,0.00048634,30]
[356806509,1743235527208,300.0,0.00048634,30]
[356806510,1743235527844,311.1,0.00048634,30]
[356806511,1743235528499,322.6107,0.00048634,30]
[356806512,1743235529095,334.5472959,0.00048634,30]
[356806513,1743235529828,346.92554585,0.00048634,30]
[356806514,1743235530477,359.76179104,0.00048634,30]
[356806515,1743235531170,373.07297731,0.00048634,30]
[356806516,1743235531875,373.07297731,0.00048634,30]
[356806517,1743235554292,-87.48844694,0.00021959,2]
[356806518,1743235554313,-156.0,0.00022,2]
[356806519,1743235554332,-28.31155306,0.00022167,2]
[356806520,1743235555047,1776.44,0.00048634,120]
[356806521,1743235555299,1776.44,0.00048634,120]
[356806522,1743235555570,1776.44,0.00048634,120]
[356806523,1743235555774,1776.44,0.00048634,120]
[356806524,1743235556021,1776.44,0.00048634,120]
[356806525,1743235556383,1776.44,0.00048634,120]
[356806526,1743235556516,1776.44,0.00048634,120]
[356806527,1743235556755,1776.44,0.00048634,120]
[356806528,1743235557001,1776.44,0.00048634,120]
[356806529,1743235557256,1776.44,0.00048634,120]
[356806530,1743235557586,1776.44,0.00048634,120]
[356806531,1743235557918,1776.44,0.00048634,120]
[356806532,1743235558244,1776.44,0.00048634,120]
[356806533,1743235558490,1776.44,0.00048634,120]
[356806534,1743235558746,1776.44,0.00048634,120]
[356806535,1743235558988,1776.44,0.00048634,120]
[356806536,1743235559235,1776.44,0.00048634,120]
[356806537,1743235559478,1776.44,0.00048634,120]
[356806538,1743235559730,1776.44,0.00048634,120]
[356806539,1743235559996,1776.44,0.00048634,120]
[356806540,1743235560257,1776.44,0.00048634,120]
[356806541,1743235560525,1776.44,0.00048634,120]
[356806542,1743235560791,1776.44,0.00048634,120]
[356806543,1743235561066,1776.58325092,0.00048634,120]
[356806544,1743235563316,1705.0,0.00048634,31]
[356806545,1743235563739,279.0,0.00048634,31]
[356806546,1743235564916,1703.0,0.00048634,31]
[356806547,1743235565276,1705.0,0.00048634,31]
[356806548,1743235565790,1703.0,0.00048634,31]
[356806549,1743235566340,1703.0,0.00048634,31]
[356806550,1743235567601,150.0,0.00048634,31]
[356806551,1743235567942,179.0,0.00048634,31]
[356806552,1743235568292,357.0,0.00048634,31]
[356806553,1743235568735,714.0,0.00048634,31]
[356806554,1743235569111,902.0,0.00048634,31]
[356806562,1743235569482,1389.0,0.00048634,31]
[356806563,1743235569904,1428.0,0.00048634,31]
[356806564,1743235570373,2206.0,0.00048634,31]
[356806565,1743235628078,-858.57522874,0.00022167,2]
[356806566,1743235628106,-300.0,0.00022286,2]
[356806567,1743235628130,-495.05685491,0.00022287,2]
[356806568,1743235628153,-225.91079889,0.00022287,2]
[356806569,1743235628177,-48.97860361,0.00022287,2]
[356806571,1743235635358,200.0,0.00048634,30]
[356806572,1743235636149,200.0,0.00048634,30]
[356806573,1743235636844,200.0,0.00048634,30]
[356806574,1743235637559,200.0,0.00048634,30]
[356806575,1743235638134,200.0,0.00048634,30]
[356806576,1743235650099,-156.0,0.00022,2]
[356806577,1743235650124,-357.81,0.00022287,2]
[356807408,1743235703741,270.2,0.00048584,30]
[356808114,1743235733120,150.0,0.00048584,90]
[356808432,1743235747144,-182.824014,0.00021395,2]
[356808433,1743235747166,-6116.226917,0.00021849,2]
[356808435,1743235747188,-17.74727966,0.00022,2]
[356808482,1743235749092,-139.25272034,0.00022,2]
[356808483,1743235749116,-182.824014,0.00022251,2]
[356808484,1743235749140,-300.0,0.00022285,2]
[356808485,1743235749162,-186.79708811,0.00022286,2]
[356808486,1743235749187,-500.0,0.00022286,2]
[356808487,1743235749213,-500.0,0.00022286,2]
[356808489,1743235749236,-500.0,0.00022286,2]
[356808490,1743235749259,-183.89025675,0.00022286,2]
[356808492,1743235749281,-500.0,0.00022286,2]
[356808494,1743235749303,-500.0,0.00022286,2]
[356808495,1743235749326,-500.0,0.00022286,2]
[356808497,1743235749349,-500.0,0.00022286,2]
[356808498,1743235749388,-500.0,0.00022286,2]
[356808500,1743235749430,-500.0,0.00022286,2]
[356808502,1743235749467,-500.0,0.00022286,2]
[356808503,1743235749490,-500.0,0.00022286,2]
[356808505,1743235749511,-500.0,0.00022286,2]
[356808506,1743235749534,-500.0,0.00022286,2]
[356808508,1743235749556,-500.0,0.00022286,2]
[356808510,1743235749588,-500.0,0.00022286,2]
[356808511,1743235749614,-500.0,0.00022286,2]
[356808513,1743235749643,-524.87323289,0.00022286,2]
[356808515,1743235749667,-500.0,0.00022286,2]
[356808516,1743235749690,-500.0,0.00022286,2]
[356808518,1743235749716,-500.0,0.00022286,2]
[356808520,1743235749740,-500.0,0.00022286,2]
[356808521,1743235749762,-500.0,0.00022286,2]
[356808523,1743235749786,-500.0,0.00022286,2]
[356808524,1743235749808,-500.0,0.00022286,2]
[356808526,1743235749832,-346.14407368,0.00022286,2]
[356808528,1743235749854,-18821.85085674,0.00022287,2]
[356808558,1743235751110,-1178.14914326,0.00022287,2]
[356808560,1743235751133,-6471.02777177,0.00022288,2]
[356808562,1743235751163,-18277.97222823,0.00022288,2]
[356808563,1743235751185,-172.6421465,0.00022371,2]
[356808565,1743235751209,-500.0,0.0002241,2]
[356808567,1743235751231,-251.42820104,0.0002241,2]
[356808568,1743235751252,-500.0,0.0002241,2]
[356808569,1743235751273,-301.65977815,0.0002241,2]
[356808570,1743235751294,-336.08508491,0.0002241,2]
[356808571,1743235751314,-2058.2641347,0.00022411,2]
[356808572,1743235751335,-5000.0,0.00022511,2]
[356808573,1743235751356,-250.0,0.00022578,2]
[356808574,1743235751377,-2323.4900346,0.00022582,2]
[356808608,1743235752599,153.0,0.00021,2]
[356808952,1743235796118,1393.916227,0.00021749,2]
[356808953,1743235810198,600.0,0.00048584,30]
[356808954,1743235810868,600.0,0.00048584,30]
[356808955,1743235815193,278.90871259,0.00048584,30]
[356808973,1743235832492,-157.0,0.00023014,2]
[356808986,1743235832698,-160.2999995,0.0002338,2]
[356809043,1743235838314,-329.86423237,0.0002338,2]
[356809044,1743235838324,-78.99799974,0.00023385,2]
[356809045,1743235838371,-411.16623211,0.00023385,2]
[356809046,1743235838381,-88.83376789,0.0002339,2]
[356809047,1743235838394,-401.33046396,0.0002339,2]
[356809048,1743235838404,-282.13982184,0.00023395,2]
[356809050,1743235838415,-208.02441001,0.00023395,2]
[356809052,1743235838425,-208.32689699,0.00023399,2]
[356809053,1743235838437,-91.67310301,0.00023399,2]
[356809054,1743235838447,-490.16423185,0.000234,2]
[356809055,1743235838456,-209.29709851,0.000234,2]
[356809056,1743235838468,-1519.56190393,0.000234,2]
[356809057,1743235838477,-746.0494084,0.000234,2]
[356809093,1743235846484,-206.96479257,0.000234,2]
[356809094,1743235846494,-159.67,0.00023479,2]
[356809095,1743235846503,-681.0,0.0002348,2]
[356809096,1743235846513,-681.0,0.0002348,2]
[356809097,1743235846522,-681.0,0.0002348,2]
[356809098,1743235846531,-681.0,0.0002348,2]
[356809099,1743235846540,-681.0,0.0002348,2]
[356809100,1743235846549,-681.0,0.0002348,2]
[356809101,1743235846558,-681.0,0.0002348,2]
[356809102,1743235846568,-681.0,0.0002348,2]
[356809103,1743235846577,-681.0,0.0002348,2]
[356809104,1743235846586,-681.0,0.0002348,2]
[356809105,1743235846596,-175.99974073,0.00023489,2]
[356809106,1743235846605,-500.0,0.00023489,2]
[356809107,1743235846614,-235.25955944,0.00023489,2]
[356809108,1743235846623,-411.1618447,0.00023489,2]
[356809109,1743235846633,-103965.22555156,0.0002349,2]
[356809110,1743235846644,-24445.12669093,0.0002349,2]
[356809111,1743235847640,-175.159423,0.0002349,2]
[356811129,1743235918273,5000.0,0.00021749,2]
[356811130,1743235927034,865207.77086937,0.00048584,30]
[356811131,1743235964986,2000.0,0.00048584,30]
[356811132,1743235965310,2000.0,0.00048584,30]
[356811133,1743235965697,898.799999,0.00048584,30]
[356811134,1743235966083,2000.0,0.00048584,30]
[356811135,1743235966530,2000.0,0.00048584,30]
[356811136,1743235967203,898.799999,0.00048584,30]
[356811137,1743235967602,2000.0,0.00048584,30]
[356811138,1743235968007,2000.0,0.00048584,30]
[356811139,1743235968538,898.8,0.00048584,30]
[356811140,1743236031714,150.0,0.00048578,120]
[356811142,1743236108619,600.0,0.00048578,30]
[356811143,1743236109245,622.2,0.00048578,30]
[356811144,1743236109909,645.2214,0.00048578,30]
[356811145,1743236110546,669.0945918,0.00048578,30]
[356811146,1743236111202,693.8510917,0.00048578,30]
[356811147,1743236111841,719.52358209,0.00048578,30]
[356811148,1743236112514,746.14595463,0.00048578,30]
[356811149,1743236113189,773.75335495,0.00048578,30]
[356811150,1743236113862,773.75335495,0.00048578,30]
[356811151,1743236118693,300.0,0.00048578,30]
[356811152,1743236275547,875.89157214,0.00048578,120]
[356811153,1743236381289,2055.0,0.00048649,30]
[356811154,1743236408985,217.36783846,0.00048649,30]
[356811155,1743236510493,238.4312105,0.00013699,2]
[356811156,1743236566642,2114.599999,0.00048649,30]
[356811157,1743236566835,2000.0,0.00048649,30]
[356811158,1743236567448,2000.0,0.00048649,30]
[356811159,1743236567883,898.8,0.00048649,30]
[356811166,1743236826113,-784.01682246,0.00020193,2]
[356811170,1743236835110,-986.64356304,0.00020193,2]
[356811171,1743236835132,-300.0,0.00020218,2]
[356811172,1743236835153,-6915.58658167,0.00020219,2]
[356811173,1743236866970,603.9020471,0.00048662,120]
[356811174,1743236871548,608.28775988,0.00048662,30]
[356811175,1743236872517,662.56240061,0.00048662,120]
[356811176,1743236878207,639.89434407,0.00048662,120]
[356811178,1743236886610,1167.89873141,0.00048662,30]
[356811180,1743236890557,2406.18644304,0.00048662,32]
[356811181,1743236896632,183.79422822,0.00048662,120]
[356811182,1743236897159,250.18303968,0.00048662,120]
[356811183,1743236899551,498.999989,0.00048662,120]
[356811184,1743236902869,168.18028512,0.00048662,60]
[356811185,1743236905928,904.09571638,0.00048675,120]
[356811186,1743236908372,722.32194276,0.00048675,120]
[356811188,1743236913603,550.26186133,0.00048675,120]
[356811189,1743236914608,2332.25157899,0.00048675,120]
[356811191,1743236915795,679.44893289,0.00048675,120]
[356811192,1743236916145,2136.8700128,0.00048675,30]
[356811193,1743236917227,240.82074905,0.00048675,120]
[356811194,1743236917256,885.36525953,0.00048675,32]
[356811195,1743236917294,3057.35839493,0.00048675,60]
[356811196,1743236917723,663.31723151,0.00048675,30]
[356811197,1743236917803,-154.69569746,0.00019969,2]
[356811198,1743236919572,584.80452283,0.00048675,30]
[356811199,1743236919900,935.19683712,0.00048675,120]
[356811200,1743236919932,1514.33387167,0.00048675,60]
[356811201,1743236920203,2000.0,0.00048675,120]
[356811202,1743236920341,240.83954331,0.00048675,30]
[356811203,1743236920869,1086.44590966,0.00048675,120]
[356811204,1743236920980,481.24118887,0.00048675,120]
[356811205,1743236921142,1584.4658738,0.00048675,30]
[356811206,1743236921345,937.73333091,0.00048675,120]
[356811207,1743236921771,1378.32153677,0.00048675,30]
[356811208,1743236923235,439.34459579,0.00048675,120]
[356811209,1743236924009,994.53508109,0.00048675,120]
[356811210,1743236924061,456.20125229,0.00048675,120]
[356811211,1743236924686,440.50790294,0.00048675,120]
[356811212,1743236924748,350.48014569,0.00048675,120]
[356811213,1743236924806,2507.83423022,0.00048675,120]
[356811214,1743236925199,2302.68650323,0.00048675,120]
[356811215,1743236925603,916.41058975,0.00048675,120]
[356811216,1743236925936,421.06974419,0.00048675,120]
[356811217,1743236925965,2199.70302267,0.00048675,120]
[356811218,1743236926061,213.12925639,0.00048675,120]
[356811221,1743236926857,236.87584833,0.00048675,120]
[356811222,1743236927360,312.89194602,0.00048675,120]
[356811223,1743236927496,201.13297455,0.00048675,120]
[356811224,1743236927717,175.80215691,0.00048675,30]
[356811225,1743236928980,491.23662063,0.00048675,30]
[356811226,1743236929168,734.01160551,0.00048675,120]
[356811227,1743236929523,1500.17880553,0.00048675,30]
[356811228,1743236951144,-238.4373174,0.0001982,2]
[356811229,1743236951166,-38.69472354,0.00019969,2]
[356811230,1743236951187,-3084.41341833,0.00020219,2]
[356811231,1743236951210,-730.298333,0.00020242,2]
[356811232,1743236951234,-193.390421,0.00020368,2]
[356811233,1743236951256,-3187.5027196,0.00020542,2]
[356811234,1743236951278,-193.390421,0.00020767,2]
[356811235,1743236951299,-2471.79459875,0.00020899,2]
[356811236,1743236951321,-300.0,0.00020987,2]
[356811237,1743236951341,-500.0,0.00020998,2]
[356811238,1743236951362,-500.0,0.00020998,2]
[356811239,1743236951383,-500.0,0.00020998,2]
[356811240,1743236951406,-883.54106318,0.00020998,2]
[356811241,1743236951427,-500.0,0.00020998,2]
[356811242,1743236951448,-500.0,0.00020998,2]
[356811243,1743236951471,-883.54106318,0.00020998,2]
[356811244,1743236951492,-373.63210746,0.00020998,2]
[356811245,1743236951513,-500.0,0.00020998,2]
[356811246,1743236951534,-500.0,0.00020998,2]
[356811247,1743236951556,-883.54106318,0.00020998,2]
[356811248,1743236951576,-312.10771336,0.00020998,2]
[356811249,1743236951598,-500.0,0.00020998,2]
[356811250,1743236951620,-883.54106318,0.00020998,2]
[356811251,1743236951643,-500.0,0.00020998,2]
[356811252,1743236951664,-541.69471791,0.00020998,2]
[356811253,1743236951685,-500.0,0.00020998,2]
[356811254,1743236951707,-500.0,0.00020998,2]
[356811255,1743236951729,-883.54106318,0.00020998,2]
[356811256,1743236951751,-500.0,0.00020998,2]
[356811257,1743236951771,-500.0,0.00020998,2]
[356811258,1743236951794,-883.54106318,0.00020998,2]
[356811259,1743236951816,-500.0,0.00020998,2]
[356811260,1743236951838,-500.0,0.00020998,2]
[356811261,1743236951859,-500.0,0.00020998,2]
[356811262,1743236951896,-883.54106318,0.00020998,2]
[356811263,1743236951919,-500.0,0.00020998,2]
[356811264,1743236951942,-500.0,0.00020998,2]
[356811265,1743236951966,-883.54106318,0.00020998,2]
[356811266,1743236951988,-500.0,0.00020998,2]
[356811267,1743236952010,-500.0,0.00020998,2]
[356811268,1743236952031,-649.02585469,0.00020998,2]
[356811269,1743236952059,-883.54106318,0.00020998,2]
[356811270,1743236952083,-500.0,0.00020998,2]
[356811271,1743236952108,-883.54106318,0.00020998,2]
[356811272,1743236952132,-500.0,0.00020998,2]
[356811273,1743236952154,-883.54106318,0.00020998,2]
[356811274,1743236952176,-500.0,0.00020998,2]
[356811275,1743236952199,-883.54106318,0.00020998,2]
[356811276,1743236952220,-500.0,0.00020998,2]
[356811277,1743236952244,-883.54106318,0.00020998,2]
[356811278,1743236952267,-264.91163588,0.00020998,2]
[356811279,1743236952291,-883.54106318,0.00020998,2]
[356811280,1743236952315,-500.0,0.00020998,2]
[356811281,1743236952338,-500.0,0.00020998,2]
[356811282,1743236952363,-883.54106318,0.00020998,2]
[356811283,1743236952386,-500.0,0.00020998,2]
[356811284,1743236952409,-883.54106318,0.00020998,2]
[356811285,1743236952432,-500.0,0.00020998,2]
[356811286,1743236952454,-500.0,0.00020998,2]
[356811287,1743236952484,-883.54106318,0.00020998,2]
[356811288,1743236952507,-883.54106318,0.00020998,2]
[356811289,1743236952528,-500.0,0.00020998,2]
[356811290,1743236952550,-500.0,0.00020998,2]
[356811291,1743236952574,-883.54106318,0.00020998,2]
[356811292,1743236952596,-500.0,0.00020998,2]
[356811293,1743236952618,-883.54106318,0.00020998,2]
[356811294,1743236952640,-500.0,0.00020998,2]
[356811295,1743236952663,-883.54106318,0.00020998,2]
[356811296,1743236952684,-500.0,0.00020998,2]
[356811297,1743236952706,-500.0,0.00020998,2]
[356811298,1743236952728,-883.54106318,0.00020998,2]
[356811299,1743236952751,-500.0,0.00020998,2]
[356811300,1743236952776,-883.54106318,0.00020998,2]
[356811301,1743236952803,-500.0,0.00020998,2]
[356811302,1743236952830,-500.0,0.00020998,2]
[356811303,1743236952858,-883.54106318,0.00020998,2]
[356811304,1743236952882,-500.0,0.00020998,2]
[356811305,1743236952907,-883.54106318,0.00020998,2]
[356811306,1743236952931,-500.0,0.00020998,2]
[356811307,1743236952953,-500.0,0.00020998,2]
[356811308,1743236952977,-883.54106318,0.00020998,2]
[356811309,1743236952999,-500.0,0.00020998,2]
[356811310,1743236953023,-883.54106318,0.00020998,2]
[356811311,1743236953049,-500.0,0.00020998,2]
[356811312,1743236953074,-883.54106318,0.00020998,2]
[356811313,1743236953098,-500.0,0.00020998,2]
[356811314,1743236953133,-883.54106318,0.00020998,2]
[356811315,1743236953154,-500.0,0.00020998,2]
[356811316,1743236953176,-883.54106318,0.00020998,2]
[356811317,1743236953199,-883.54106318,0.00020998,2]
[356811318,1743236953220,-500.0,0.00020998,2]
[356811319,1743236953243,-883.54106318,0.00020998,2]
[356811320,1743236953265,-883.54106318,0.00020998,2]
[356811321,1743236953288,-883.54106318,0.00020998,2]
[356811322,1743236953537,-500.0,0.00020998,2]
[356811323,1743236953561,-883.54106318,0.00020998,2]
[356811324,1743236953584,-883.54106318,0.00020998,2]
[356811325,1743236953605,-500.0,0.00020998,2]
[356811326,1743236953627,-883.54106318,0.00020998,2]
[356811327,1743236953653,-883.54106318,0.00020998,2]
[356811328,1743236953677,-883.54106318,0.00020998,2]
[356811329,1743236953700,-883.54106318,0.00020998,2]
[356811330,1743236953724,-883.54106318,0.00020998,2]
[356811331,1743236953748,-883.54106318,0.00020998,2]
[356811332,1743236953771,-883.54106318,0.00020998,2]
[356811333,1743236953793,-883.54106318,0.00020998,2]
[356811334,1743236953816,-883.54106318,0.00020998,2]
[356811335,1743236953846,-883.54106318,0.00020998,2]
[356811336,1743236953868,-883.54106318,0.00020998,2]
[356811337,1743236953892,-883.54106318,0.00020998,2]
[356811338,1743236953914,-883.54106318,0.00020998,2]
[356811339,1743236953937,-883.54106318,0.00020998,2]
[356811340,1743236953962,-883.54106318,0.00020998,2]
[356811341,1743236953984,-883.54106318,0.00020998,2]
[356811342,1743236954007,-883.54106318,0.00020998,2]
[356811343,1743236954029,-883.54106318,0.00020998,2]
[356811344,1743236954054,-883.54106318,0.00020998,2]
[356811345,1743236954075,-175.49087059,0.00020998,2]
[356811346,1743236954097,-468.75610277,0.00020998,2]
[356811347,1743236954119,-219.31927845,0.00020998,2]
[356811348,1743236954140,-50000.0,0.00020999,2]
[356811349,1743236954160,-399.77978143,0.00020999,2]
[356811350,1743236954180,-10238.22295891,0.00021,2]
[356811351,1743236954200,-514.80983369,0.00021,3]
[356811352,1743236954220,-152.0,0.00021158,2]
[356811353,1743236954240,-360.31471414,0.00021259,2]
[356811354,1743236954262,-500.0,0.00021348,2]
[356811355,1743236954282,-495.71472503,0.00021348,2]
[356811356,1743236954303,-500.0,0.00021348,2]
[356811357,1743236954325,-243.05281981,0.00021348,2]
[356811358,1743236954344,-13354.2852252,0.0002136,2]
[356811359,1743236954364,-193.0,0.00021634,2]
[356811360,1743236954384,-204.1409838,0.00021717,2]
[356811361,1743236954406,-372.25,0.00021724,3]
[356811362,1743236954428,-32208.05038234,0.00021734,2]
[356811363,1743236954473,250000.0,0.00048675,120]
[356811364,1743236954600,-1591.63602976,0.00021734,2]
[356811365,1743236954621,-360.31471411,0.00021778,2]
[356811366,1743236954642,-2471.79459869,0.00021891,2]
[356811367,1743236954662,-500.0,0.0002196,2]
[356811368,1743236954682,-262.2880244,0.0002196,2]
[356811369,1743236954703,-500.0,0.0002196,2]
[356811370,1743236954723,-500.0,0.0002196,2]
[356811371,1743236954743,-500.0,0.0002196,2]
[356811372,1743236954763,-500.0,0.0002196,2]
[356811373,1743236954784,-500.0,0.0002196,2]
[356811374,1743236954806,-500.0,0.0002196,2]
[356811375,1743236954826,-500.0,0.0002196,2]
[356811376,1743236954846,-339.15503186,0.0002196,2]
[356811377,1743236954867,-500.0,0.0002196,2]
[356811378,1743236954886,-500.0,0.0002196,2]
[356811379,1743236954906,-500.0,0.0002196,2]
[356811380,1743236954930,-500.0,0.0002196,2]
[356811381,1743236954950,-340.11047814,0.0002196,2]
[356811382,1743236954970,-500.0,0.0002196,2]
[356811383,1743236954990,-512.14053761,0.0002196,2]
[356811384,1743236955011,-500.0,0.0002196,2]
[356811385,1743236955031,-501.32630473,0.0002196,2]
[356811386,1743236955055,-500.0,0.0002196,2]
[356811387,1743236955077,-176.0,0.00022,2]
[356811388,1743236955097,-247.0,0.00022121,2]
[356811389,1743236956495,299.0,0.00048675,60]
[356811390,1743236956620,500.0,0.00020998,2]
[356811391,1743236956652,500.0,0.00020998,2]
[356811392,1743236956682,500.0,0.00020998,2]
[356811393,1743236956708,500.0,0.00020998,2]
[356811394,1743236956733,500.0,0.00020998,2]
[356811395,1743236956759,500.0,0.00020998,2]
[356811396,1743236966102,-500.0,0.000222,2]
[356811397,1743236966124,-360.31471411,0.00022296,2]
[356811398,1743236966145,-288.00673783,0.000224,2]
[356811399,1743236966165,-501.90152507,0.000224,2]
[356811400,1743236966186,-500.0,0.000224,2]
[356811401,1743236966208,-500.0,0.000224,2]
[356811402,1743236966230,-291.8658686,0.00022508,2]
[356811403,1743236966252,-5343.570507,0.00022519,2]
[356811404,1743236966275,-1158.30170584,0.00022519,2]
[356811405,1743236978099,4480.78090804,0.00020998,2]
[356811406,1743236978132,4480.78090804,0.00020998,2]
[356811407,1743236978165,4480.78090804,0.00020998,2]
[356811408,1743236978198,4480.78090804,0.00020998,2]
[356811409,1743236978233,4480.78090804,0.00020998,2]
[356811410,1743236978268,2514.8963984,0.00020998,2]
[356811411,1743236978289,1414.46213478,0.00020998,2]
[356811416,1743237007543,600.0,0.00048675,30]
[356811417,1743237012214,300.0,0.00048675,30]
[356811443,1743237036386,-156.10565133,0.00020988,3]
[356811457,1743237038458,-3007.75184233,0.00020898,2]
[356811458,1743237038468,-154.10434867,0.00020988,3]
[356811459,1743237038477,-155.1,0.00020988,3]
[356811460,1743237038486,-465.34,0.00020988,3]
[356811461,1743237038496,-300.0,0.00020997,2]
[356811462,1743237038515,-551.42237486,0.00020998,2]
[356811463,1743237038527,-4480.78090804,0.00020998,2]
[356811464,1743237038536,-4480.78090804,0.00020998,2]
[356811465,1743237038546,-4480.78090804,0.00020998,2]
[356811468,1743237038557,-4480.78090804,0.00020998,2]
[356811470,1743237038567,-4480.78090804,0.00020998,2]
[356811472,1743237038576,-4480.78090804,0.00020998,2]
[356811473,1743237038587,-1045.86673738,0.00020998,2]
[356811474,1743237038600,-863.85267397,0.00020998,2]
[356811475,1743237038612,-2571.06149669,0.00020998,2]
[356811476,1743237038622,-4480.78090804,0.00020998,2]
[356811477,1743237038631,-4480.78090804,0.00020998,2]
[356811478,1743237038642,-4480.78090804,0.00020998,2]
[356811479,1743237038653,-4480.78090804,0.00020998,2]
[356811480,1743237038663,-4480.78090804,0.00020998,2]
[356811481,1743237038672,-4480.78090804,0.00020998,2]
[356811482,1743237038682,-4480.78090804,0.00020998,2]
[356811483,1743237038692,-4480.78090804,0.00020998,2]
[356811484,1743237038701,-4480.78090804,0.00020998,2]
[356811485,1743237038711,-4480.78090804,0.00020998,2]
[356811486,1743237038720,-4480.78090804,0.00020998,2]
[356811487,1743237038730,-4480.78090804,0.00020998,2]
[356811488,1743237038740,-4480.78090804,0.00020998,2]
[356811489,1743237038749,-4480.78090804,0.00020998,2]
[356811490,1743237038759,-4480.78090804,0.00020998,2]
[356811491,1743237038767,-3499.79887571,0.00020998,2]
[356811492,1743237038780,-980.98203233,0.00020998,2]
[356811493,1743237038789,-250.0,0.00021761,2]
[356811494,1743237038799,-176.0,0.00022,2]
[356811495,1743237038809,-1694.5129239,0.00022173,2]
[356811496,1743237038819,-500.99111064,0.000222,2]
[356811497,1743237038829,-500.0,0.000222,2]
[356811498,1743237038838,-500.83533131,0.000222,2]
[356811499,1743237038848,-500.0,0.000222,2]
[356811500,1743237038857,-620.42,0.00022358,3]
[356811501,1743237038867,-310.2,0.00022358,3]
[356811502,1743237038877,-227.4021211,0.00022519,2]
[356811503,1743237038887,-500.0,0.000226,2]
[356811504,1743237038898,-502.10923942,0.000226,2]
[356811505,1743237038907,-500.0,0.000226,2]
[356811506,1743237038917,-500.0,0.000226,2]
[356811507,1743237038926,-500.0,0.000226,2]
[356811508,1743237038935,-500.0,0.000226,2]
[356811509,1743237038945,-365.6757091,0.00022619,2]
[356811510,1743237038954,-503.53207852,0.00022733,2]
[356811511,1743237038964,-500.0,0.00022733,2]
[356811512,1743237038974,-500.0,0.00022733,2]
[356811513,1743237038984,-420.0,0.0002284,2]
[356811514,1743237038993,-152.0,0.00022884,2]
[356811515,1743237039003,-237.53797448,0.00022948,2]
[356811516,1743237039012,-2928.26077645,0.0002299,2]
[356811517,1743237039022,-176.0,0.00023014,2]